Workbook

Sheet Results by County
A1: CountyName | B1: Trump | D1: Clinton | F1: Johnson | H1: Castle | I1: Stein | J1: De La Fuente | K1: w/ins (6)
A2: Alachua | B2: 46834 | C2: =B2/L2 -> 0.3642656587 | D2: 75820 | E2: =D2/L2 -> 0.5897130768 | F2: 4059 | G2: =F2/L2 -> 0.03157010523 | H2: 262 | I2: 1507 | J2: 87 | K2: 2 | L2: =SUM(B2+D2+F2+H2+I2+J2+K2) -> 128571
A3: Baker | B3: 10294 | C3: 0.8147854994 | D3: 2112 | E3: 0.1671679595 | F3: 169 | G3: =F3/L3 -> 0.01337660282 | H3: 23 | I3: 30 | J3: 6 | K3: 0 | L3: =SUM(B3+D3+F3+H3+I3+J3+K3) -> 12634
A4: Bay | B4: 62194 | C4: 0.7111705716 | D4: 21797 | E4: 0.2492424502 | F4: 2652 | G4: 0.03032486021 | H4: 179 | I4: 562 | J4: 65 | K4: 4 | L4: =SUM(B4+D4+F4+H4+I4+J4+K4) -> 87453
A5: Bradford | B5: 8913 | C5: 0.7367333444 | D5: 2924 | E5: 0.2416928418 | F5: 177 | G5: 0.01463051744 | H5: 33 | I5: 47 | J5: 4 | K5: 0 | L5: 12098
A6: Brevard | B6: 181848 | C6: 0.5777501017 | D6: 119679 | E6: 0.3802326911 | F6: 9451 | G6: 0.03002681476 | H6: 744 | I6: 2708 | J6: 314 | K6: 8 | L6: 314752
A7: Broward | B7: 260951 | C7: 0.3136615017 | D7: 553320 | E7: 0.6650872467 | F7: 11078 | G7: 0.01331568806 | H7: 907 | I7: 5094 | J7: 600 | K7: 1 | L7: 831951
A8: Calhoun | B8: 4655 | C8: 0.7654990955 | D8: 1241 | E8: 0.2040782766 | F8: 124 | G8: 0.020391383 | H8: 25 | I8: 25 | J8: 11 | K8: 0 | L8: 6081
A9: Charlotte | B9: 60218 | C9: 0.6248365742 | D9: 33445 | E9: 0.3470334323 | F9: 1946 | G9: 0.02019216801 | H9: 127 | I9: 567 | J9: 68 | K9: 3 | L9: 96374
A10: Citrus | B10: 54456 | C10: 0.6832622334 | D10: 22789 | E10: 0.2859347553 | F10: 1724 | G10: 0.02163111669 | H10: 182 | I10: 480 | J10: 68 | K10: 1 | L10: 79700
A11: Clay | B11: 74963 | C11: 0.7039903083 | D11: 27822 | E11: 0.2612811435 | F11: 2806 | G11: 0.0263516242 | H11: 223 | I11: 571 | J11: 98 | K11: 0 | L11: 106483
A12: Collier | B12: 105423 | C12: 0.6172704331 | D12: 61085 | E12: 0.3576635498 | F12: 3263 | G12: 0.0191054459 | H12: 172 | I12: 747 | J12: 98 | K12: 1 | L12: 170789
A13: Columbia | B13: 20368 | C13: 0.7095133591 | D13: 7601 | E13: 0.2647786254 | F13: 523 | G13: 0.01821855297 | H13: 44 | I13: 150 | J13: 21 | K13: 0 | L13: 28707
A14: Desoto | B14: 6778 | C14: 0.6265483454 | D14: 3781 | E14: 0.3495100758 | F14: 166 | G14: 0.01534479571 | H14: 22 | I14: 53 | J14: 18 | K14: 0 | L14: 10818
A15: Dixie | B15: 5822 | C15: 0.8083865593 | D15: 1270 | E15: 0.1763399056 | F15: 77 | G15: 0.01069147459 | H15: 10 | I15: 21 | J15: 2 | K15: 0 | L15: 7202
A16: Duval | B16: 211672 | C16: 0.4891944672 | D16: 205704 | E16: 0.4754018419 | F16: 11318 | G16: 0.0261569928 | H16: 747 | I16: 2912 | J16: 331 | K16: 11 | L16: 432695
A17: Escambia | B17: 88808 | C17: 0.5824659439 | D17: 57461 | E17: 0.3768700523 | F17: 4612 | G17: 0.03024877188 | H17: 415 | I17: 1055 | J17: 116 | K17: 2 | L17: 152469
A18: Flagler | B18: 33850 | C18: 0.5886649392 | D18: 22026 | E18: 0.3830408848 | F18: 1114 | G18: 0.01937290228 | H18: 84 | I18: 388 | J18: 41 | K18: 0 | L18: 57503
A19: Franklin | B19: 4125 | C19: 0.6857855362 | D19: 1744 | E19: 0.2899418121 | F19: 95 | G19: 0.01579384871 | H19: 16 | I19: 33 | J19: 2 | K19: 0 | L19: 6015
A20: Gadsden | B20: 6728 | C20: 0.3042554154 | D20: 15020 | E20: 0.679238457 | F20: 229 | G20: 0.01035589924 | H20: 49 | I20: 78 | J20: 9 | K20: 0 | L20: 22113
A21: Gilchrist | B21: 6740 | C21: 0.8004750594 | D21: 1458 | E21: 0.1731591449 | F21: 155 | G21: 0.01840855107 | H21: 18 | I21: 43 | J21: 6 | K21: 0 | L21: 8420
A22: Glades | B22: 2996 | C22: 0.6882609694 | D22: 1271 | E22: 0.2919825408 | F22: 54 | G22: 0.01240523777 | H22: 9 | I22: 18 | J22: 5 | K22: 0 | L22: 4353
A23: Gulf | B23: 5329 | C23: 0.7307006719 | D23: 1720 | E23: 0.2358425888 | F23: 195 | G23: 0.02673796791 | H23: 14 | I23: 27 | J23: 8 | K23: 0 | L23: 7293
A24: Hamilton | B24: 3443 | C24: 0.6305860806 | D24: 1904 | E24: 0.3487179487 | F24: 79 | G24: 0.01446886447 | H24: 11 | I24: 17 | J24: 6 | K24: 0 | L24: 5460
A25: Hardee | B25: 5242 | C25: 0.6912831333 | D25: 2149 | E25: 0.2833970724 | F25: 140 | G25: 0.01846234999 | H25: 21 | I25: 24 | J25: 7 | K25: 0 | L25: 7583
A26: Hendry | B26: 6195 | C26: 0.5573549258 | D26: 4615 | E26: 0.4152046784 | F26: 207 | G26: 0.01862348178 | H26: 28 | I26: 52 | J26: 18 | K26: 0 | L26: 11115
A27: Hernando | B27: 58970 | C27: 0.6287048488 | D27: 31795 | E27: 0.3389803403 | F27: 2051 | G27: 0.02186660412 | H27: 190 | I27: 710 | J27: 77 | K27: 3 | L27: 93796
A28: Highlands | B28: 29565 | C28: 0.6471347897 | D28: 14937 | E28: 0.3269491748 | F28: 854 | G28: 0.01869281618 | H28: 92 | I28: 186 | J28: 52 | K28: 0 | L28: 45686
A29: Hillsborough | B29: 266870 | C29: 0.44652478 | D29: 307896 | E29: 0.5151691597 | F29: 15703 | G29: 0.0262741358 | H29: 1323 | I29: 5032 | J29: 822 | K29: 14 | L29: 597660
A30: Holmes | B30: 7483 | C30: 0.8789053324 | D30: 853 | E30: 0.1001879258 | F30: 133 | G30: 0.01562132957 | H30: 17 | I30: 19 | J30: 9 | K30: 0 | L30: 8514
A31: Indian River | B31: 48620 | C31: 0.6076816358 | D31: 29043 | E31: 0.3629966629 | F31: 1723 | G31: 0.0215350773 | H31: 141 | I31: 419 | J31: 61 | K31: 2 | L31: 80009
A32: Jackson | B32: 14257 | C32: 0.677581864 | D32: 6397 | E32: 0.3040254741 | F32: 266 | G32: 0.0126419847 | H32: 42 | I32: 60 | J32: 17 | K32: 2 | L32: 21041
A33: Jefferson | B33: 3930 | C33: 0.5140614781 | D33: 3541 | E33: 0.4631785481 | F33: 110 | G33: 0.01438848921 | H33: 17 | I33: 42 | J33: 5 | K33: 0 | L33: 7645
A34: Lafayette | B34: 2809 | C34: =B34/L34 -> 0.828125 | D34: 518 | E34: =D34/L34 -> 0.1527122642 | F34: 47 | G34: 0.01385613208 | H34: 6 | I34: 10 | J34: 2 | K34: 0 | L34: 3392
A35: Lake | B35: 102188 | C35: 0.5994767162 | D35: 62838 | E35: 0.3686334784 | F35: 3985 | G35: 0.02337764428 | H35: 322 | I35: 975 | J35: 154 | K35: 0 | L35: 170462
A36: Lee | B36: 191551 | C36: 0.586823724 | D36: 124908 | E36: 0.3826603762 | F36: 6982 | G36: 0.02138962073 | H36: 558 | I36: 2127 | J36: 292 | K36: 2 | L36: 326420
A37: Leon | B37: 53821 | C37: 0.3537782978 | D37: 92068 | E37: 0.6051849709 | F37: 4403 | G37: 0.02894197145 | H37: 330 | I37: 1366 | J37: 127 | K37: 17 | L37: 152132
A38: Levy | B38: 13775 | C38: 0.7102345965 | D38: 5101 | E38: 0.2630059294 | F38: 358 | G38: 0.01845836556 | H38: 46 | I38: 102 | J38: 13 | K38: 0 | L38: 19395
A39: Liberty | B39: 2543 | C39: 0.7715412621 | D39: 651 | E39: 0.1975121359 | F39: 76 | G39: 0.02305825243 | H39: 9 | I39: 17 | J39: 0 | K39: 0 | L39: 3296
A40: Madison | B40: 4851 | C40: 0.5703703704 | D40: 3526 | E40: 0.414579659 | F40: 95 | G40: 0.01116990006 | H40: 8 | I40: 22 | J40: 3 | K40: 0 | L40: 8505
A41: Manatee | B41: 101944 | C41: 0.5696532147 | D41: 71224 | E41: 0.3979928251 | F41: 4177 | G41: 0.02334067211 | H41: 319 | I41: 1149 | J41: 141 | K41: 4 | L41: 178958
A42: Marion | B42: 107833 | C42: 0.6172467086 | D42: 62041 | E42: 0.3551287922 | F42: 3365 | G42: 0.0192615913 | H42: 315 | I42: 972 | J42: 172 | K42: 2 | L42: 174700
A43: Martin | B43: 53204 | C43: 0.620151063 | D43: 30185 | E43: 0.3518393323 | F43: 1804 | G43: 0.02102760164 | H43: 86 | I43: 474 | J43: 39 | K43: 0 | L43: 85792
A44: Miami-Dade | B44: 333999 | C44: 0.3407443757 | D44: 624146 | E44: 0.6367511253 | F44: 13219 | G44: 0.01348596823 | H44: 1273 | I44: 5985 | J44: 1582 | K44: 0 | L44: 980204
A45: Monroe | B45: 21904 | C45: 0.5156551627 | D45: 18971 | E45: 0.4466076557 | F45: 1131 | G45: 0.02662554734 | H45: 41 | I45: 398 | J45: 33 | K45: 0 | L45: 42478
A46: Nassau | B46: 34266 | C46: 0.7352114489 | D46: 10869 | E46: 0.2332053125 | F46: 1195 | G46: 0.02563992533 | H46: 67 | I46: 188 | J46: 22 | K46: 0 | L46: 46607
A47: Okaloosa | B47: 71893 | C47: 0.7128352585 | D47: 23780 | E47: 0.2357840464 | F47: 4171 | G47: 0.04135640276 | H47: 319 | I47: 611 | J47: 78 | K47: 3 | L47: 100855
A48: Okeechobee | B48: 9356 | C48: 0.6852706365 | D48: 3959 | E48: 0.2899728997 | F48: 234 | G48: 0.01713909031 | H48: 31 | I48: 53 | J48: 20 | K48: 0 | L48: 13653
A49: Orange | B49: 195216 | C49: 0.3573584733 | D49: 329894 | E49: 0.6038973045 | F49: 14483 | G49: 0.02651228777 | H49: 1188 | I49: 4777 | J49: 705 | K49: 12 | L49: 546275
A50: Osceola | B50: 50301 | C50: 0.3587649601 | D50: 85458 | E50: 0.6095174244 | F50: 2811 | G50: 0.02004907065 | H50: 358 | I50: 1003 | J50: 275 | K50: 0 | L50: 140206
A51: Palm Beach | B51: 272402 | C51: 0.4112771239 | D51: 374673 | E51: 0.5656876008 | F51: 10370 | G51: 0.01565680052 | H51: 719 | I51: 3723 | J51: 435 | K51: 10 | L51: 662332
A52: Pasco | B52: 142101 | C52: 0.589290824 | D52: 90142 | E52: 0.3738175907 | F52: 6129 | G52: 0.02541687574 | H52: 578 | I52: 1908 | J52: 273 | K52: 8 | L52: 241139
A53: Pinellas | B53: 239201 | C53: 0.4857829867 | D53: 233701 | E53: 0.4746132741 | F53: 13627 | G53: 0.02767448614 | H53: 840 | I53: 4611 | J53: 413 | K53: 10 | L53: 492403
A54: Polk | B54: 157430 | C54: 0.5537187757 | D54: 117433 | E54: 0.4130398081 | F54: 6810 | G54: 0.02395239067 | H54: 671 | I54: 1647 | J54: 320 | K54: 3 | L54: 284314
A55: Putnam | B55: 22138 | C55: 0.668478425 | D55: 10094 | E55: 0.3047981399 | F55: 597 | G55: 0.0180269952 | H55: 48 | I55: 219 | J55: 21 | K55: 0 | L55: 33117
A56: Santa Rosa | B56: 65339 | C56: 0.7446464186 | D56: 18464 | E56: 0.2104279446 | F56: 3123 | G56: 0.03559177161 | H56: 239 | I56: 524 | J56: 55 | K56: 1 | L56: 87745
A57: Sarasota | B57: 124438 | C57: 0.5432479274 | D57: 97870 | E57: 0.4272623689 | F57: 4715 | G57: 0.02058385684 | H57: 314 | I57: 1596 | J57: 125 | K57: 5 | L57: 229063
A58: Seminole | B58: 109443 | C58: 0.4866382684 | D58: 105914 | E58: 0.4709465709 | F58: 6811 | G58: 0.03028510956 | H58: 516 | I58: 1974 | J58: 229 | K58: 9 | L58: 224896
A59: St. Johns | B59: 88684 | C59: 0.6496330047 | D59: 43099 | E59: 0.3157112091 | F59: 3612 | G59: 0.02645882474 | H59: 167 | I59: 864 | J59: 87 | K59: 1 | L59: 136514
A60: St. Lucie | B60: 70289 | C60: 0.4990450631 | D60: 66881 | E60: 0.4748485946 | F60: 2475 | G60: 0.01757225926 | H60: 201 | I60: 867 | J60: 134 | K60: 0 | L60: 140847
A61: Sumter | B61: 52730 | C61: 0.6877975608 | D61: 22638 | E61: 0.2952846801 | F61: 971 | G61: 0.01266549273 | H61: 84 | I61: 201 | J61: 40 | K61: 1 | L61: 76665
A62: Suwannee | B62: 14287 | C62: 0.764255911 | D62: 3964 | E62: 0.212046646 | F62: 309 | G62: 0.01652936771 | H62: 42 | I62: 81 | J62: 10 | K62: 1 | L62: 18694
A63: Taylor | B63: 6930 | C63: 0.7459634015 | D63: 2152 | E63: 0.2316469322 | F63: 151 | G63: 0.0162540366 | H63: 20 | I63: 33 | J63: 4 | K63: 0 | L63: 9290
A64: Union | B64: 4568 | C64: 0.8022479803 | D64: 1014 | E64: 0.1780821918 | F64: 90 | G64: 0.0158061117 | H64: 7 | I64: 12 | J64: 3 | K64: 0 | L64: 5694
A65: Volusia | B65: 143007 | C65: 0.5481946878 | D65: 109091 | E65: 0.4181830727 | F65: 6111 | G65: 0.02342555076 | H65: 440 | I65: 2003 | J65: 208 | K65: 9 | L65: 260869
A66: Wakulla | B66: 10512 | C66: =B66/L66 -> 0.6847762361 | D66: 4348 | E66: =D66/L66 -> 0.2832388769 | F66: 378 | G66: 0.02462380301 | H66: 32 | I66: 66 | J66: 14 | K66: 1 | L66: 15351
A67: Walton | B67: 25756 | C67: 0.7657044326 | D67: 6876 | E67: 0.2044177543 | F67: 783 | G67: =F67/L67 -> 0.02327793798 | H67: 60 | I67: 142 | J67: 20 | K67: 0 | L67: 33637
A68: Washington | B68: 8637 | C68: 0.774202223 | D68: 2264 | E68: 0.2029401219 | F68: 192 | G68: 0.0172104697 | H68: 34 | I68: 22 | J68: 7 | K68: 0 | L68: =SUM(B68+D68+F68+H68+I68+J68+K68) -> 11156
B69: =SUM(B2:B68) -> 4617886 | C69: 0.4902194142 | D69: =SUM(D2:D68) -> 4504975 | E69: 0.4782331581 | F69: =SUM(F2:F68) -> 207043 | G69: 0.02197899605 | H69: 16475 | I69: 64399 | J69: 9108 | K69: 153 | L69: 9420039

Sheet Co. Vote Largest to Smallest
A1: CountyName | B1: Trump | D1: Clinton | F1: Johnson | H1: Castle | I1: Stein | J1: De La Fuente | K1: w/ins (6)
A2: Miami-Dade | B2: 333999 | C2: =B2/L2 -> 0.3407443757 | D2: 624146 | E2: =D2/L2 -> 0.6367511253 | F2: 13219 | G2: =F2/L2 -> 0.01348596823 | H2: 1273 | I2: 5985 | J2: 1582 | K2: 0 | L2: =SUM(B2+D2+F2+H2+I2+J2+K2) -> 980204
A3: Broward | B3: 260951 | C3: 0.3136615017 | D3: 553320 | E3: 0.6650872467 | F3: 11078 | G3: 0.01331568806 | H3: 907 | I3: 5094 | J3: 600 | K3: 1 | L3: 831951
A4: Palm Beach | B4: 272402 | C4: 0.4112771239 | D4: 374673 | E4: 0.5656876008 | F4: 10370 | G4: 0.01565680052 | H4: 719 | I4: 3723 | J4: 435 | K4: 10 | L4: 662332
A5: Hillsborough | B5: 266870 | C5: 0.44652478 | D5: 307896 | E5: 0.5151691597 | F5: 15703 | G5: 0.0262741358 | H5: 1323 | I5: 5032 | J5: 822 | K5: 14 | L5: 597660
A6: Orange | B6: 195216 | C6: 0.3573584733 | D6: 329894 | E6: 0.6038973045 | F6: 14483 | G6: 0.02651228777 | H6: 1188 | I6: 4777 | J6: 705 | K6: 12 | L6: 546275
A7: Pinellas | B7: 239201 | C7: 0.4857829867 | D7: 233701 | E7: 0.4746132741 | F7: 13627 | G7: 0.02767448614 | H7: 840 | I7: 4611 | J7: 413 | K7: 10 | L7: 492403
A8: Duval | B8: 211672 | C8: 0.4891944672 | D8: 205704 | E8: 0.4754018419 | F8: 11318 | G8: 0.0261569928 | H8: 747 | I8: 2912 | J8: 331 | K8: 11 | L8: 432695
A9: Lee | B9: 191551 | C9: 0.586823724 | D9: 124908 | E9: 0.3826603762 | F9: 6982 | G9: 0.02138962073 | H9: 558 | I9: 2127 | J9: 292 | K9: 2 | L9: 326420
A10: Brevard | B10: 181848 | C10: 0.5777501017 | D10: 119679 | E10: 0.3802326911 | F10: 9451 | G10: 0.03002681476 | H10: 744 | I10: 2708 | J10: 314 | K10: 8 | L10: 314752
A11: Polk | B11: 157430 | C11: 0.5537187757 | D11: 117433 | E11: 0.4130398081 | F11: 6810 | G11: 0.02395239067 | H11: 671 | I11: 1647 | J11: 320 | K11: 3 | L11: 284314
A12: Volusia | B12: 143007 | C12: 0.5481946878 | D12: 109091 | E12: 0.4181830727 | F12: 6111 | G12: 0.02342555076 | H12: 440 | I12: 2003 | J12: 208 | K12: 9 | L12: 260869
A13: Pasco | B13: 142101 | C13: 0.589290824 | D13: 90142 | E13: 0.3738175907 | F13: 6129 | G13: 0.02541687574 | H13: 578 | I13: 1908 | J13: 273 | K13: 8 | L13: 241139
A14: Sarasota | B14: 124438 | C14: 0.5432479274 | D14: 97870 | E14: 0.4272623689 | F14: 4715 | G14: 0.02058385684 | H14: 314 | I14: 1596 | J14: 125 | K14: 5 | L14: 229063
A15: Seminole | B15: 109443 | C15: 0.4866382684 | D15: 105914 | E15: 0.4709465709 | F15: 6811 | G15: 0.03028510956 | H15: 516 | I15: 1974 | J15: 229 | K15: 9 | L15: 224896
A16: Manatee | B16: 101944 | C16: 0.5696532147 | D16: 71224 | E16: 0.3979928251 | F16: 4177 | G16: 0.02334067211 | H16: 319 | I16: 1149 | J16: 141 | K16: 4 | L16: 178958
A17: Marion | B17: 107833 | C17: 0.6172467086 | D17: 62041 | E17: 0.3551287922 | F17: 3365 | G17: 0.0192615913 | H17: 315 | I17: 972 | J17: 172 | K17: 2 | L17: 174700
A18: Collier | B18: 105423 | C18: 0.6172704331 | D18: 61085 | E18: 0.3576635498 | F18: 3263 | G18: 0.0191054459 | H18: 172 | I18: 747 | J18: 98 | K18: 1 | L18: 170789
A19: Lake | B19: 102188 | C19: 0.5994767162 | D19: 62838 | E19: 0.3686334784 | F19: 3985 | G19: 0.02337764428 | H19: 322 | I19: 975 | J19: 154 | K19: 0 | L19: 170462
A20: Escambia | B20: 88808 | C20: 0.5824659439 | D20: 57461 | E20: 0.3768700523 | F20: 4612 | G20: 0.03024877188 | H20: 415 | I20: 1055 | J20: 116 | K20: 2 | L20: 152469
A21: Leon | B21: 53821 | C21: 0.3537782978 | D21: 92068 | E21: 0.6051849709 | F21: 4403 | G21: 0.02894197145 | H21: 330 | I21: 1366 | J21: 127 | K21: 17 | L21: 152132
A22: St. Lucie | B22: 70289 | C22: 0.4990450631 | D22: 66881 | E22: 0.4748485946 | F22: 2475 | G22: 0.01757225926 | H22: 201 | I22: 867 | J22: 134 | K22: 0 | L22: 140847
A23: Osceola | B23: 50301 | C23: 0.3587649601 | D23: 85458 | E23: 0.6095174244 | F23: 2811 | G23: 0.02004907065 | H23: 358 | I23: 1003 | J23: 275 | K23: 0 | L23: 140206
A24: St. Johns | B24: 88684 | C24: 0.6496330047 | D24: 43099 | E24: 0.3157112091 | F24: 3612 | G24: 0.02645882474 | H24: 167 | I24: 864 | J24: 87 | K24: 1 | L24: 136514
A25: Alachua | B25: 46834 | C25: 0.3642656587 | D25: 75820 | E25: 0.5897130768 | F25: 4059 | G25: 0.03157010523 | H25: 262 | I25: 1507 | J25: 87 | K25: 2 | L25: 128571
A26: Clay | B26: 74963 | C26: 0.7039903083 | D26: 27822 | E26: 0.2612811435 | F26: 2806 | G26: 0.0263516242 | H26: 223 | I26: 571 | J26: 98 | K26: 0 | L26: 106483
A27: Okaloosa | B27: 71893 | C27: 0.7128352585 | D27: 23780 | E27: 0.2357840464 | F27: 4171 | G27: 0.04135640276 | H27: 319 | I27: 611 | J27: 78 | K27: 3 | L27: 100855
A28: Charlotte | B28: 60218 | C28: 0.6248365742 | D28: 33445 | E28: 0.3470334323 | F28: 1946 | G28: 0.02019216801 | H28: 127 | I28: 567 | J28: 68 | K28: 3 | L28: 96374
A29: Hernando | B29: 58970 | C29: 0.6287048488 | D29: 31795 | E29: 0.3389803403 | F29: 2051 | G29: 0.02186660412 | H29: 190 | I29: 710 | J29: 77 | K29: 3 | L29: 93796
A30: Santa Rosa | B30: 65339 | C30: 0.7446464186 | D30: 18464 | E30: 0.2104279446 | F30: 3123 | G30: 0.03559177161 | H30: 239 | I30: 524 | J30: 55 | K30: 1 | L30: 87745
A31: Bay | B31: 62194 | C31: 0.7111705716 | D31: 21797 | E31: 0.2492424502 | F31: 2652 | G31: 0.03032486021 | H31: 179 | I31: 562 | J31: 65 | K31: 4 | L31: 87453
A32: Martin | B32: 53204 | C32: 0.620151063 | D32: 30185 | E32: 0.3518393323 | F32: 1804 | G32: 0.02102760164 | H32: 86 | I32: 474 | J32: 39 | K32: 0 | L32: 85792
A33: Indian River | B33: 48620 | C33: 0.6076816358 | D33: 29043 | E33: 0.3629966629 | F33: 1723 | G33: 0.0215350773 | H33: 141 | I33: 419 | J33: 61 | K33: 2 | L33: 80009
A34: Citrus | B34: 54456 | C34: =B34/L34 -> 0.6832622334 | D34: 22789 | E34: =D34/L34 -> 0.2859347553 | F34: 1724 | G34: =F34/L34 -> 0.02163111669 | H34: 182 | I34: 480 | J34: 68 | K34: 1 | L34: =SUM(B34+D34+F34+H34+I34+J34+K34) -> 79700
A35: Sumter | B35: 52730 | C35: 0.6877975608 | D35: 22638 | E35: 0.2952846801 | F35: 971 | G35: 0.01266549273 | H35: 84 | I35: 201 | J35: 40 | K35: 1 | L35: 76665
A36: Flagler | B36: 33850 | C36: 0.5886649392 | D36: 22026 | E36: 0.3830408848 | F36: 1114 | G36: 0.01937290228 | H36: 84 | I36: 388 | J36: 41 | K36: 0 | L36: 57503
A37: Nassau | B37: 34266 | C37: 0.7352114489 | D37: 10869 | E37: 0.2332053125 | F37: 1195 | G37: 0.02563992533 | H37: 67 | I37: 188 | J37: 22 | K37: 0 | L37: 46607
A38: Highlands | B38: 29565 | C38: 0.6471347897 | D38: 14937 | E38: 0.3269491748 | F38: 854 | G38: 0.01869281618 | H38: 92 | I38: 186 | J38: 52 | K38: 0 | L38: 45686
A39: Monroe | B39: 21904 | C39: 0.5156551627 | D39: 18971 | E39: 0.4466076557 | F39: 1131 | G39: 0.02662554734 | H39: 41 | I39: 398 | J39: 33 | K39: 0 | L39: 42478
A40: Walton | B40: 25756 | C40: 0.7657044326 | D40: 6876 | E40: 0.2044177543 | F40: 783 | G40: 0.02327793798 | H40: 60 | I40: 142 | J40: 20 | K40: 0 | L40: 33637
A41: Putnam | B41: 22138 | C41: 0.668478425 | D41: 10094 | E41: 0.3047981399 | F41: 597 | G41: 0.0180269952 | H41: 48 | I41: 219 | J41: 21 | K41: 0 | L41: 33117
A42: Columbia | B42: 20368 | C42: 0.7095133591 | D42: 7601 | E42: 0.2647786254 | F42: 523 | G42: 0.01821855297 | H42: 44 | I42: 150 | J42: 21 | K42: 0 | L42: 28707
A43: Gadsden | B43: 6728 | C43: 0.3042554154 | D43: 15020 | E43: 0.679238457 | F43: 229 | G43: 0.01035589924 | H43: 49 | I43: 78 | J43: 9 | K43: 0 | L43: 22113
A44: Jackson | B44: 14257 | C44: 0.677581864 | D44: 6397 | E44: 0.3040254741 | F44: 266 | G44: 0.0126419847 | H44: 42 | I44: 60 | J44: 17 | K44: 2 | L44: 21041
A45: Levy | B45: 13775 | C45: 0.7102345965 | D45: 5101 | E45: 0.2630059294 | F45: 358 | G45: 0.01845836556 | H45: 46 | I45: 102 | J45: 13 | K45: 0 | L45: 19395
A46: Suwannee | B46: 14287 | C46: 0.764255911 | D46: 3964 | E46: 0.212046646 | F46: 309 | G46: 0.01652936771 | H46: 42 | I46: 81 | J46: 10 | K46: 1 | L46: 18694
A47: Wakulla | B47: 10512 | C47: 0.6847762361 | D47: 4348 | E47: 0.2832388769 | F47: 378 | G47: 0.02462380301 | H47: 32 | I47: 66 | J47: 14 | K47: 1 | L47: 15351
A48: Okeechobee | B48: 9356 | C48: 0.6852706365 | D48: 3959 | E48: 0.2899728997 | F48: 234 | G48: 0.01713909031 | H48: 31 | I48: 53 | J48: 20 | K48: 0 | L48: 13653
A49: Baker | B49: 10294 | C49: 0.8147854994 | D49: 2112 | E49: 0.1671679595 | F49: 169 | G49: 0.01337660282 | H49: 23 | I49: 30 | J49: 6 | K49: 0 | L49: 12634
A50: Bradford | B50: 8913 | C50: 0.7367333444 | D50: 2924 | E50: 0.2416928418 | F50: 177 | G50: 0.01463051744 | H50: 33 | I50: 47 | J50: 4 | K50: 0 | L50: 12098
A51: Washington | B51: 8637 | C51: 0.774202223 | D51: 2264 | E51: 0.2029401219 | F51: 192 | G51: 0.0172104697 | H51: 34 | I51: 22 | J51: 7 | K51: 0 | L51: 11156
A52: Hendry | B52: 6195 | C52: 0.5573549258 | D52: 4615 | E52: 0.4152046784 | F52: 207 | G52: 0.01862348178 | H52: 28 | I52: 52 | J52: 18 | K52: 0 | L52: 11115
A53: Desoto | B53: 6778 | C53: 0.6265483454 | D53: 3781 | E53: 0.3495100758 | F53: 166 | G53: 0.01534479571 | H53: 22 | I53: 53 | J53: 18 | K53: 0 | L53: 10818
A54: Taylor | B54: 6930 | C54: 0.7459634015 | D54: 2152 | E54: 0.2316469322 | F54: 151 | G54: 0.0162540366 | H54: 20 | I54: 33 | J54: 4 | K54: 0 | L54: 9290
A55: Holmes | B55: 7483 | C55: 0.8789053324 | D55: 853 | E55: 0.1001879258 | F55: 133 | G55: 0.01562132957 | H55: 17 | I55: 19 | J55: 9 | K55: 0 | L55: 8514
A56: Madison | B56: 4851 | C56: 0.5703703704 | D56: 3526 | E56: 0.414579659 | F56: 95 | G56: 0.01116990006 | H56: 8 | I56: 22 | J56: 3 | K56: 0 | L56: 8505
A57: Gilchrist | B57: 6740 | C57: 0.8004750594 | D57: 1458 | E57: 0.1731591449 | F57: 155 | G57: 0.01840855107 | H57: 18 | I57: 43 | J57: 6 | K57: 0 | L57: 8420
A58: Jefferson | B58: 3930 | C58: 0.5140614781 | D58: 3541 | E58: 0.4631785481 | F58: 110 | G58: 0.01438848921 | H58: 17 | I58: 42 | J58: 5 | K58: 0 | L58: 7645
A59: Hardee | B59: 5242 | C59: 0.6912831333 | D59: 2149 | E59: 0.2833970724 | F59: 140 | G59: 0.01846234999 | H59: 21 | I59: 24 | J59: 7 | K59: 0 | L59: 7583
A60: Gulf | B60: 5329 | C60: 0.7307006719 | D60: 1720 | E60: 0.2358425888 | F60: 195 | G60: 0.02673796791 | H60: 14 | I60: 27 | J60: 8 | K60: 0 | L60: 7293
A61: Dixie | B61: 5822 | C61: 0.8083865593 | D61: 1270 | E61: 0.1763399056 | F61: 77 | G61: 0.01069147459 | H61: 10 | I61: 21 | J61: 2 | K61: 0 | L61: 7202
A62: Calhoun | B62: 4655 | C62: 0.7654990955 | D62: 1241 | E62: 0.2040782766 | F62: 124 | G62: 0.020391383 | H62: 25 | I62: 25 | J62: 11 | K62: 0 | L62: 6081
A63: Franklin | B63: 4125 | C63: 0.6857855362 | D63: 1744 | E63: 0.2899418121 | F63: 95 | G63: 0.01579384871 | H63: 16 | I63: 33 | J63: 2 | K63: 0 | L63: 6015
A64: Union | B64: 4568 | C64: 0.8022479803 | D64: 1014 | E64: 0.1780821918 | F64: 90 | G64: 0.0158061117 | H64: 7 | I64: 12 | J64: 3 | K64: 0 | L64: 5694
A65: Hamilton | B65: 3443 | C65: 0.6305860806 | D65: 1904 | E65: 0.3487179487 | F65: 79 | G65: 0.01446886447 | H65: 11 | I65: 17 | J65: 6 | K65: 0 | L65: 5460
A66: Glades | B66: 2996 | C66: =B66/L66 -> 0.6882609694 | D66: 1271 | E66: =D66/L66 -> 0.2919825408 | F66: 54 | G66: =F66/L66 -> 0.01240523777 | H66: 9 | I66: 18 | J66: 5 | K66: 0 | L66: =SUM(B66+D66+F66+H66+I66+J66+K66) -> 4353
A67: Lafayette | B67: 2809 | C67: 0.828125 | D67: 518 | E67: 0.1527122642 | F67: 47 | G67: 0.01385613208 | H67: 6 | I67: 10 | J67: 2 | K67: 0 | L67: 3392
A68: Liberty | B68: 2543 | C68: 0.7715412621 | D68: 651 | E68: 0.1975121359 | F68: 76 | G68: 0.02305825243 | H68: 9 | I68: 17 | J68: 0 | K68: 0 | L68: 3296
B69: =SUM(B2:B68) -> 4617886 | C69: 0.4902194142 | D69: =SUM(D2:D68) -> 4504975 | E69: 0.4782331581 | F69: =SUM(F2:F68) -> 207043 | G69: 0.02197899605 | H69: =SUM(H2:H68) -> 16475 | I69: =SUM(I2:I68) -> 64399 | J69: =SUM(J2:J68) -> 9108 | K69: =SUM(K2:K68) -> 153 | L69: 9420039

Sheet Clinton Strongest to Weakest
A1: CountyName | B1: Trump | D1: Clinton | F1: Johnson | H1: Castle | I1: Stein | J1: De La Fuente | K1: w/ins (6)
A2: Gadsden | B2: 6728 | C2: =B2/L2 -> 0.3042554154 | D2: 15020 | E2: =D2/L2 -> 0.679238457 | F2: 229 | G2: =F2/L2 -> 0.01035589924 | H2: 49 | I2: 78 | J2: 9 | K2: 0 | L2: =SUM(B2+D2+F2+H2+I2+J2+K2) -> 22113
A3: Broward | B3: 260951 | C3: 0.3136615017 | D3: 553320 | E3: 0.6650872467 | F3: 11078 | G3: 0.01331568806 | H3: 907 | I3: 5094 | J3: 600 | K3: 1 | L3: 831951
A4: Miami-Dade | B4: 333999 | C4: 0.3407443757 | D4: 624146 | E4: 0.6367511253 | F4: 13219 | G4: 0.01348596823 | H4: 1273 | I4: 5985 | J4: 1582 | K4: 0 | L4: 980204
A5: Osceola | B5: 50301 | C5: 0.3587649601 | D5: 85458 | E5: 0.6095174244 | F5: 2811 | G5: 0.02004907065 | H5: 358 | I5: 1003 | J5: 275 | K5: 0 | L5: 140206
A6: Leon | B6: 53821 | C6: 0.3537782978 | D6: 92068 | E6: 0.6051849709 | F6: 4403 | G6: 0.02894197145 | H6: 330 | I6: 1366 | J6: 127 | K6: 17 | L6: 152132
A7: Orange | B7: 195216 | C7: 0.3573584733 | D7: 329894 | E7: 0.6038973045 | F7: 14483 | G7: 0.02651228777 | H7: 1188 | I7: 4777 | J7: 705 | K7: 12 | L7: 546275
A8: Alachua | B8: 46834 | C8: 0.3642656587 | D8: 75820 | E8: 0.5897130768 | F8: 4059 | G8: 0.03157010523 | H8: 262 | I8: 1507 | J8: 87 | K8: 2 | L8: 128571
A9: Palm Beach | B9: 272402 | C9: 0.4112771239 | D9: 374673 | E9: 0.5656876008 | F9: 10370 | G9: 0.01565680052 | H9: 719 | I9: 3723 | J9: 435 | K9: 10 | L9: 662332
A10: Hillsborough | B10: 266870 | C10: 0.44652478 | D10: 307896 | E10: 0.5151691597 | F10: 15703 | G10: 0.0262741358 | H10: 1323 | I10: 5032 | J10: 822 | K10: 14 | L10: 597660
A11: Duval | B11: 211672 | C11: 0.4891944672 | D11: 205704 | E11: 0.4754018419 | F11: 11318 | G11: 0.0261569928 | H11: 747 | I11: 2912 | J11: 331 | K11: 11 | L11: 432695
A12: St. Lucie | B12: 70289 | C12: 0.4990450631 | D12: 66881 | E12: 0.4748485946 | F12: 2475 | G12: 0.01757225926 | H12: 201 | I12: 867 | J12: 134 | K12: 0 | L12: 140847
A13: Pinellas | B13: 239201 | C13: 0.4857829867 | D13: 233701 | E13: 0.4746132741 | F13: 13627 | G13: 0.02767448614 | H13: 840 | I13: 4611 | J13: 413 | K13: 10 | L13: 492403
A14: Seminole | B14: 109443 | C14: 0.4866382684 | D14: 105914 | E14: 0.4709465709 | F14: 6811 | G14: 0.03028510956 | H14: 516 | I14: 1974 | J14: 229 | K14: 9 | L14: 224896
A15: Jefferson | B15: 3930 | C15: 0.5140614781 | D15: 3541 | E15: 0.4631785481 | F15: 110 | G15: 0.01438848921 | H15: 17 | I15: 42 | J15: 5 | K15: 0 | L15: 7645
A16: Monroe | B16: 21904 | C16: 0.5156551627 | D16: 18971 | E16: 0.4466076557 | F16: 1131 | G16: 0.02662554734 | H16: 41 | I16: 398 | J16: 33 | K16: 0 | L16: 42478
A17: Sarasota | B17: 124438 | C17: 0.5432479274 | D17: 97870 | E17: 0.4272623689 | F17: 4715 | G17: 0.02058385684 | H17: 314 | I17: 1596 | J17: 125 | K17: 5 | L17: 229063
A18: Volusia | B18: 143007 | C18: 0.5481946878 | D18: 109091 | E18: 0.4181830727 | F18: 6111 | G18: 0.02342555076 | H18: 440 | I18: 2003 | J18: 208 | K18: 9 | L18: 260869
A19: Hendry | B19: 6195 | C19: 0.5573549258 | D19: 4615 | E19: 0.4152046784 | F19: 207 | G19: 0.01862348178 | H19: 28 | I19: 52 | J19: 18 | K19: 0 | L19: 11115
A20: Madison | B20: 4851 | C20: 0.5703703704 | D20: 3526 | E20: 0.414579659 | F20: 95 | G20: 0.01116990006 | H20: 8 | I20: 22 | J20: 3 | K20: 0 | L20: 8505
A21: Polk | B21: 157430 | C21: 0.5537187757 | D21: 117433 | E21: 0.4130398081 | F21: 6810 | G21: 0.02395239067 | H21: 671 | I21: 1647 | J21: 320 | K21: 3 | L21: 284314
A22: Manatee | B22: 101944 | C22: 0.5696532147 | D22: 71224 | E22: 0.3979928251 | F22: 4177 | G22: 0.02334067211 | H22: 319 | I22: 1149 | J22: 141 | K22: 4 | L22: 178958
A23: Flagler | B23: 33850 | C23: 0.5886649392 | D23: 22026 | E23: 0.3830408848 | F23: 1114 | G23: 0.01937290228 | H23: 84 | I23: 388 | J23: 41 | K23: 0 | L23: 57503
A24: Lee | B24: 191551 | C24: 0.586823724 | D24: 124908 | E24: 0.3826603762 | F24: 6982 | G24: 0.02138962073 | H24: 558 | I24: 2127 | J24: 292 | K24: 2 | L24: 326420
A25: Brevard | B25: 181848 | C25: 0.5777501017 | D25: 119679 | E25: 0.3802326911 | F25: 9451 | G25: 0.03002681476 | H25: 744 | I25: 2708 | J25: 314 | K25: 8 | L25: 314752
A26: Escambia | B26: 88808 | C26: 0.5824659439 | D26: 57461 | E26: 0.3768700523 | F26: 4612 | G26: 0.03024877188 | H26: 415 | I26: 1055 | J26: 116 | K26: 2 | L26: 152469
A27: Pasco | B27: 142101 | C27: 0.589290824 | D27: 90142 | E27: 0.3738175907 | F27: 6129 | G27: 0.02541687574 | H27: 578 | I27: 1908 | J27: 273 | K27: 8 | L27: 241139
A28: Lake | B28: 102188 | C28: 0.5994767162 | D28: 62838 | E28: 0.3686334784 | F28: 3985 | G28: 0.02337764428 | H28: 322 | I28: 975 | J28: 154 | K28: 0 | L28: 170462
A29: Indian River | B29: 48620 | C29: 0.6076816358 | D29: 29043 | E29: 0.3629966629 | F29: 1723 | G29: 0.0215350773 | H29: 141 | I29: 419 | J29: 61 | K29: 2 | L29: 80009
A30: Collier | B30: 105423 | C30: 0.6172704331 | D30: 61085 | E30: 0.3576635498 | F30: 3263 | G30: 0.0191054459 | H30: 172 | I30: 747 | J30: 98 | K30: 1 | L30: 170789
A31: Marion | B31: 107833 | C31: 0.6172467086 | D31: 62041 | E31: 0.3551287922 | F31: 3365 | G31: 0.0192615913 | H31: 315 | I31: 972 | J31: 172 | K31: 2 | L31: 174700
A32: Martin | B32: 53204 | C32: 0.620151063 | D32: 30185 | E32: 0.3518393323 | F32: 1804 | G32: 0.02102760164 | H32: 86 | I32: 474 | J32: 39 | K32: 0 | L32: 85792
A33: Desoto | B33: 6778 | C33: 0.6265483454 | D33: 3781 | E33: 0.3495100758 | F33: 166 | G33: 0.01534479571 | H33: 22 | I33: 53 | J33: 18 | K33: 0 | L33: 10818
A34: Hamilton | B34: 3443 | C34: =B34/L34 -> 0.6305860806 | D34: 1904 | E34: =D34/L34 -> 0.3487179487 | F34: 79 | G34: =F34/L34 -> 0.01446886447 | H34: 11 | I34: 17 | J34: 6 | K34: 0 | L34: =SUM(B34+D34+F34+H34+I34+J34+K34) -> 5460
A35: Charlotte | B35: 60218 | C35: 0.6248365742 | D35: 33445 | E35: 0.3470334323 | F35: 1946 | G35: 0.02019216801 | H35: 127 | I35: 567 | J35: 68 | K35: 3 | L35: 96374
A36: Hernando | B36: 58970 | C36: 0.6287048488 | D36: 31795 | E36: 0.3389803403 | F36: 2051 | G36: 0.02186660412 | H36: 190 | I36: 710 | J36: 77 | K36: 3 | L36: 93796
A37: Highlands | B37: 29565 | C37: 0.6471347897 | D37: 14937 | E37: 0.3269491748 | F37: 854 | G37: 0.01869281618 | H37: 92 | I37: 186 | J37: 52 | K37: 0 | L37: 45686
A38: St. Johns | B38: 88684 | C38: 0.6496330047 | D38: 43099 | E38: 0.3157112091 | F38: 3612 | G38: 0.02645882474 | H38: 167 | I38: 864 | J38: 87 | K38: 1 | L38: 136514
A39: Putnam | B39: 22138 | C39: 0.668478425 | D39: 10094 | E39: 0.3047981399 | F39: 597 | G39: 0.0180269952 | H39: 48 | I39: 219 | J39: 21 | K39: 0 | L39: 33117
A40: Jackson | B40: 14257 | C40: 0.677581864 | D40: 6397 | E40: 0.3040254741 | F40: 266 | G40: 0.0126419847 | H40: 42 | I40: 60 | J40: 17 | K40: 2 | L40: 21041
A41: Sumter | B41: 52730 | C41: 0.6877975608 | D41: 22638 | E41: 0.2952846801 | F41: 971 | G41: 0.01266549273 | H41: 84 | I41: 201 | J41: 40 | K41: 1 | L41: 76665
A42: Glades | B42: 2996 | C42: 0.6882609694 | D42: 1271 | E42: 0.2919825408 | F42: 54 | G42: 0.01240523777 | H42: 9 | I42: 18 | J42: 5 | K42: 0 | L42: 4353
A43: Okeechobee | B43: 9356 | C43: 0.6852706365 | D43: 3959 | E43: 0.2899728997 | F43: 234 | G43: 0.01713909031 | H43: 31 | I43: 53 | J43: 20 | K43: 0 | L43: 13653
A44: Franklin | B44: 4125 | C44: 0.6857855362 | D44: 1744 | E44: 0.2899418121 | F44: 95 | G44: 0.01579384871 | H44: 16 | I44: 33 | J44: 2 | K44: 0 | L44: 6015
A45: Citrus | B45: 54456 | C45: 0.6832622334 | D45: 22789 | E45: 0.2859347553 | F45: 1724 | G45: 0.02163111669 | H45: 182 | I45: 480 | J45: 68 | K45: 1 | L45: 79700
A46: Hardee | B46: 5242 | C46: 0.6912831333 | D46: 2149 | E46: 0.2833970724 | F46: 140 | G46: 0.01846234999 | H46: 21 | I46: 24 | J46: 7 | K46: 0 | L46: 7583
A47: Wakulla | B47: 10512 | C47: 0.6847762361 | D47: 4348 | E47: 0.2832388769 | F47: 378 | G47: 0.02462380301 | H47: 32 | I47: 66 | J47: 14 | K47: 1 | L47: 15351
A48: Columbia | B48: 20368 | C48: 0.7095133591 | D48: 7601 | E48: 0.2647786254 | F48: 523 | G48: 0.01821855297 | H48: 44 | I48: 150 | J48: 21 | K48: 0 | L48: 28707
A49: Levy | B49: 13775 | C49: 0.7102345965 | D49: 5101 | E49: 0.2630059294 | F49: 358 | G49: 0.01845836556 | H49: 46 | I49: 102 | J49: 13 | K49: 0 | L49: 19395
A50: Clay | B50: 74963 | C50: 0.7039903083 | D50: 27822 | E50: 0.2612811435 | F50: 2806 | G50: 0.0263516242 | H50: 223 | I50: 571 | J50: 98 | K50: 0 | L50: 106483
A51: Bay | B51: 62194 | C51: 0.7111705716 | D51: 21797 | E51: 0.2492424502 | F51: 2652 | G51: 0.03032486021 | H51: 179 | I51: 562 | J51: 65 | K51: 4 | L51: 87453
A52: Bradford | B52: 8913 | C52: 0.7367333444 | D52: 2924 | E52: 0.2416928418 | F52: 177 | G52: 0.01463051744 | H52: 33 | I52: 47 | J52: 4 | K52: 0 | L52: 12098
A53: Gulf | B53: 5329 | C53: 0.7307006719 | D53: 1720 | E53: 0.2358425888 | F53: 195 | G53: 0.02673796791 | H53: 14 | I53: 27 | J53: 8 | K53: 0 | L53: 7293
A54: Okaloosa | B54: 71893 | C54: 0.7128352585 | D54: 23780 | E54: 0.2357840464 | F54: 4171 | G54: 0.04135640276 | H54: 319 | I54: 611 | J54: 78 | K54: 3 | L54: 100855
A55: Nassau | B55: 34266 | C55: 0.7352114489 | D55: 10869 | E55: 0.2332053125 | F55: 1195 | G55: 0.02563992533 | H55: 67 | I55: 188 | J55: 22 | K55: 0 | L55: 46607
A56: Taylor | B56: 6930 | C56: 0.7459634015 | D56: 2152 | E56: 0.2316469322 | F56: 151 | G56: 0.0162540366 | H56: 20 | I56: 33 | J56: 4 | K56: 0 | L56: 9290
A57: Suwannee | B57: 14287 | C57: 0.764255911 | D57: 3964 | E57: 0.212046646 | F57: 309 | G57: 0.01652936771 | H57: 42 | I57: 81 | J57: 10 | K57: 1 | L57: 18694
A58: Santa Rosa | B58: 65339 | C58: 0.7446464186 | D58: 18464 | E58: 0.2104279446 | F58: 3123 | G58: 0.03559177161 | H58: 239 | I58: 524 | J58: 55 | K58: 1 | L58: 87745
A59: Walton | B59: 25756 | C59: 0.7657044326 | D59: 6876 | E59: 0.2044177543 | F59: 783 | G59: 0.02327793798 | H59: 60 | I59: 142 | J59: 20 | K59: 0 | L59: 33637
A60: Calhoun | B60: 4655 | C60: 0.7654990955 | D60: 1241 | E60: 0.2040782766 | F60: 124 | G60: 0.020391383 | H60: 25 | I60: 25 | J60: 11 | K60: 0 | L60: 6081
A61: Washington | B61: 8637 | C61: 0.774202223 | D61: 2264 | E61: 0.2029401219 | F61: 192 | G61: 0.0172104697 | H61: 34 | I61: 22 | J61: 7 | K61: 0 | L61: 11156
A62: Liberty | B62: 2543 | C62: 0.7715412621 | D62: 651 | E62: 0.1975121359 | F62: 76 | G62: 0.02305825243 | H62: 9 | I62: 17 | J62: 0 | K62: 0 | L62: 3296
A63: Union | B63: 4568 | C63: 0.8022479803 | D63: 1014 | E63: 0.1780821918 | F63: 90 | G63: 0.0158061117 | H63: 7 | I63: 12 | J63: 3 | K63: 0 | L63: 5694
A64: Dixie | B64: 5822 | C64: 0.8083865593 | D64: 1270 | E64: 0.1763399056 | F64: 77 | G64: 0.01069147459 | H64: 10 | I64: 21 | J64: 2 | K64: 0 | L64: 7202
A65: Gilchrist | B65: 6740 | C65: 0.8004750594 | D65: 1458 | E65: 0.1731591449 | F65: 155 | G65: 0.01840855107 | H65: 18 | I65: 43 | J65: 6 | K65: 0 | L65: 8420
A66: Baker | B66: 10294 | C66: =B66/L66 -> 0.8147854994 | D66: 2112 | E66: =D66/L66 -> 0.1671679595 | F66: 169 | G66: =F66/L66 -> 0.01337660282 | H66: 23 | I66: 30 | J66: 6 | K66: 0 | L66: =SUM(B66+D66+F66+H66+I66+J66+K66) -> 12634
A67: Lafayette | B67: 2809 | C67: 0.828125 | D67: 518 | E67: 0.1527122642 | F67: 47 | G67: 0.01385613208 | H67: 6 | I67: 10 | J67: 2 | K67: 0 | L67: 3392
A68: Holmes | B68: 7483 | C68: 0.8789053324 | D68: 853 | E68: 0.1001879258 | F68: 133 | G68: 0.01562132957 | H68: 17 | I68: 19 | J68: 9 | K68: 0 | L68: 8514
B69: =SUM(B2:B68) -> 4617886 | C69: 0.4902194142 | D69: =SUM(D2:D68) -> 4504975 | E69: 0.4782331581 | F69: =SUM(F2:F68) -> 207043 | G69: 0.02197899605 | H69: =SUM(H2:H68) -> 16475 | I69: =SUM(I2:I68) -> 64399 | J69: =SUM(J2:J68) -> 9108 | K69: =SUM(K2:K68) -> 153 | L69: 9420039

Sheet Trump Strongest to Weakest
A1: CountyName | B1: Trump | D1: Clinton | F1: Johnson | H1: Castle | I1: Stein | J1: De La Fuente | K1: w/ins (6)
A2: Holmes | B2: 7483 | C2: =B2/L2 -> 0.8789053324 | D2: 853 | E2: =D2/L2 -> 0.1001879258 | F2: 133 | G2: =F2/L2 -> 0.01562132957 | H2: 17 | I2: 19 | J2: 9 | K2: 0 | L2: =SUM(B2+D2+F2+H2+I2+J2+K2) -> 8514
A3: Lafayette | B3: 2809 | C3: 0.828125 | D3: 518 | E3: 0.1527122642 | F3: 47 | G3: 0.01385613208 | H3: 6 | I3: 10 | J3: 2 | K3: 0 | L3: 3392
A4: Baker | B4: 10294 | C4: 0.8147854994 | D4: 2112 | E4: 0.1671679595 | F4: 169 | G4: 0.01337660282 | H4: 23 | I4: 30 | J4: 6 | K4: 0 | L4: 12634
A5: Dixie | B5: 5822 | C5: 0.8083865593 | D5: 1270 | E5: 0.1763399056 | F5: 77 | G5: 0.01069147459 | H5: 10 | I5: 21 | J5: 2 | K5: 0 | L5: 7202
A6: Union | B6: 4568 | C6: 0.8022479803 | D6: 1014 | E6: 0.1780821918 | F6: 90 | G6: 0.0158061117 | H6: 7 | I6: 12 | J6: 3 | K6: 0 | L6: 5694
A7: Gilchrist | B7: 6740 | C7: 0.8004750594 | D7: 1458 | E7: 0.1731591449 | F7: 155 | G7: 0.01840855107 | H7: 18 | I7: 43 | J7: 6 | K7: 0 | L7: 8420
A8: Washington | B8: 8637 | C8: 0.774202223 | D8: 2264 | E8: 0.2029401219 | F8: 192 | G8: 0.0172104697 | H8: 34 | I8: 22 | J8: 7 | K8: 0 | L8: 11156
A9: Liberty | B9: 2543 | C9: 0.7715412621 | D9: 651 | E9: 0.1975121359 | F9: 76 | G9: 0.02305825243 | H9: 9 | I9: 17 | J9: 0 | K9: 0 | L9: 3296
A10: Walton | B10: 25756 | C10: 0.7657044326 | D10: 6876 | E10: 0.2044177543 | F10: 783 | G10: 0.02327793798 | H10: 60 | I10: 142 | J10: 20 | K10: 0 | L10: 33637
A11: Calhoun | B11: 4655 | C11: 0.7654990955 | D11: 1241 | E11: 0.2040782766 | F11: 124 | G11: 0.020391383 | H11: 25 | I11: 25 | J11: 11 | K11: 0 | L11: 6081
A12: Suwannee | B12: 14287 | C12: 0.764255911 | D12: 3964 | E12: 0.212046646 | F12: 309 | G12: 0.01652936771 | H12: 42 | I12: 81 | J12: 10 | K12: 1 | L12: 18694
A13: Taylor | B13: 6930 | C13: 0.7459634015 | D13: 2152 | E13: 0.2316469322 | F13: 151 | G13: 0.0162540366 | H13: 20 | I13: 33 | J13: 4 | K13: 0 | L13: 9290
A14: Santa Rosa | B14: 65339 | C14: 0.7446464186 | D14: 18464 | E14: 0.2104279446 | F14: 3123 | G14: 0.03559177161 | H14: 239 | I14: 524 | J14: 55 | K14: 1 | L14: 87745
A15: Bradford | B15: 8913 | C15: 0.7367333444 | D15: 2924 | E15: 0.2416928418 | F15: 177 | G15: 0.01463051744 | H15: 33 | I15: 47 | J15: 4 | K15: 0 | L15: 12098
A16: Nassau | B16: 34266 | C16: 0.7352114489 | D16: 10869 | E16: 0.2332053125 | F16: 1195 | G16: 0.02563992533 | H16: 67 | I16: 188 | J16: 22 | K16: 0 | L16: 46607
A17: Gulf | B17: 5329 | C17: 0.7307006719 | D17: 1720 | E17: 0.2358425888 | F17: 195 | G17: 0.02673796791 | H17: 14 | I17: 27 | J17: 8 | K17: 0 | L17: 7293
A18: Okaloosa | B18: 71893 | C18: 0.7128352585 | D18: 23780 | E18: 0.2357840464 | F18: 4171 | G18: 0.04135640276 | H18: 319 | I18: 611 | J18: 78 | K18: 3 | L18: 100855
A19: Bay | B19: 62194 | C19: 0.7111705716 | D19: 21797 | E19: 0.2492424502 | F19: 2652 | G19: 0.03032486021 | H19: 179 | I19: 562 | J19: 65 | K19: 4 | L19: 87453
A20: Levy | B20: 13775 | C20: 0.7102345965 | D20: 5101 | E20: 0.2630059294 | F20: 358 | G20: 0.01845836556 | H20: 46 | I20: 102 | J20: 13 | K20: 0 | L20: 19395
A21: Columbia | B21: 20368 | C21: 0.7095133591 | D21: 7601 | E21: 0.2647786254 | F21: 523 | G21: 0.01821855297 | H21: 44 | I21: 150 | J21: 21 | K21: 0 | L21: 28707
A22: Clay | B22: 74963 | C22: 0.7039903083 | D22: 27822 | E22: 0.2612811435 | F22: 2806 | G22: 0.0263516242 | H22: 223 | I22: 571 | J22: 98 | K22: 0 | L22: 106483
A23: Hardee | B23: 5242 | C23: 0.6912831333 | D23: 2149 | E23: 0.2833970724 | F23: 140 | G23: 0.01846234999 | H23: 21 | I23: 24 | J23: 7 | K23: 0 | L23: 7583
A24: Glades | B24: 2996 | C24: 0.6882609694 | D24: 1271 | E24: 0.2919825408 | F24: 54 | G24: 0.01240523777 | H24: 9 | I24: 18 | J24: 5 | K24: 0 | L24: 4353
A25: Sumter | B25: 52730 | C25: 0.6877975608 | D25: 22638 | E25: 0.2952846801 | F25: 971 | G25: 0.01266549273 | H25: 84 | I25: 201 | J25: 40 | K25: 1 | L25: 76665
A26: Franklin | B26: 4125 | C26: 0.6857855362 | D26: 1744 | E26: 0.2899418121 | F26: 95 | G26: 0.01579384871 | H26: 16 | I26: 33 | J26: 2 | K26: 0 | L26: 6015
A27: Okeechobee | B27: 9356 | C27: 0.6852706365 | D27: 3959 | E27: 0.2899728997 | F27: 234 | G27: 0.01713909031 | H27: 31 | I27: 53 | J27: 20 | K27: 0 | L27: 13653
A28: Wakulla | B28: 10512 | C28: 0.6847762361 | D28: 4348 | E28: 0.2832388769 | F28: 378 | G28: 0.02462380301 | H28: 32 | I28: 66 | J28: 14 | K28: 1 | L28: 15351
A29: Citrus | B29: 54456 | C29: 0.6832622334 | D29: 22789 | E29: 0.2859347553 | F29: 1724 | G29: 0.02163111669 | H29: 182 | I29: 480 | J29: 68 | K29: 1 | L29: 79700
A30: Jackson | B30: 14257 | C30: 0.677581864 | D30: 6397 | E30: 0.3040254741 | F30: 266 | G30: 0.0126419847 | H30: 42 | I30: 60 | J30: 17 | K30: 2 | L30: 21041
A31: Putnam | B31: 22138 | C31: 0.668478425 | D31: 10094 | E31: 0.3047981399 | F31: 597 | G31: 0.0180269952 | H31: 48 | I31: 219 | J31: 21 | K31: 0 | L31: 33117
A32: St. Johns | B32: 88684 | C32: 0.6496330047 | D32: 43099 | E32: 0.3157112091 | F32: 3612 | G32: 0.02645882474 | H32: 167 | I32: 864 | J32: 87 | K32: 1 | L32: 136514
A33: Highlands | B33: 29565 | C33: 0.6471347897 | D33: 14937 | E33: 0.3269491748 | F33: 854 | G33: 0.01869281618 | H33: 92 | I33: 186 | J33: 52 | K33: 0 | L33: 45686
A34: Hamilton | B34: 3443 | C34: =B34/L34 -> 0.6305860806 | D34: 1904 | E34: =D34/L34 -> 0.3487179487 | F34: 79 | G34: =F34/L34 -> 0.01446886447 | H34: 11 | I34: 17 | J34: 6 | K34: 0 | L34: =SUM(B34+D34+F34+H34+I34+J34+K34) -> 5460
A35: Hernando | B35: 58970 | C35: 0.6287048488 | D35: 31795 | E35: 0.3389803403 | F35: 2051 | G35: 0.02186660412 | H35: 190 | I35: 710 | J35: 77 | K35: 3 | L35: 93796
A36: Desoto | B36: 6778 | C36: 0.6265483454 | D36: 3781 | E36: 0.3495100758 | F36: 166 | G36: 0.01534479571 | H36: 22 | I36: 53 | J36: 18 | K36: 0 | L36: 10818
A37: Charlotte | B37: 60218 | C37: 0.6248365742 | D37: 33445 | E37: 0.3470334323 | F37: 1946 | G37: 0.02019216801 | H37: 127 | I37: 567 | J37: 68 | K37: 3 | L37: 96374
A38: Martin | B38: 53204 | C38: 0.620151063 | D38: 30185 | E38: 0.3518393323 | F38: 1804 | G38: 0.02102760164 | H38: 86 | I38: 474 | J38: 39 | K38: 0 | L38: 85792
A39: Collier | B39: 105423 | C39: 0.6172704331 | D39: 61085 | E39: 0.3576635498 | F39: 3263 | G39: 0.0191054459 | H39: 172 | I39: 747 | J39: 98 | K39: 1 | L39: 170789
A40: Marion | B40: 107833 | C40: 0.6172467086 | D40: 62041 | E40: 0.3551287922 | F40: 3365 | G40: 0.0192615913 | H40: 315 | I40: 972 | J40: 172 | K40: 2 | L40: 174700
A41: Indian River | B41: 48620 | C41: 0.6076816358 | D41: 29043 | E41: 0.3629966629 | F41: 1723 | G41: 0.0215350773 | H41: 141 | I41: 419 | J41: 61 | K41: 2 | L41: 80009
A42: Lake | B42: 102188 | C42: 0.5994767162 | D42: 62838 | E42: 0.3686334784 | F42: 3985 | G42: 0.02337764428 | H42: 322 | I42: 975 | J42: 154 | K42: 0 | L42: 170462
A43: Pasco | B43: 142101 | C43: 0.589290824 | D43: 90142 | E43: 0.3738175907 | F43: 6129 | G43: 0.02541687574 | H43: 578 | I43: 1908 | J43: 273 | K43: 8 | L43: 241139
A44: Flagler | B44: 33850 | C44: 0.5886649392 | D44: 22026 | E44: 0.3830408848 | F44: 1114 | G44: 0.01937290228 | H44: 84 | I44: 388 | J44: 41 | K44: 0 | L44: 57503
A45: Lee | B45: 191551 | C45: 0.586823724 | D45: 124908 | E45: 0.3826603762 | F45: 6982 | G45: 0.02138962073 | H45: 558 | I45: 2127 | J45: 292 | K45: 2 | L45: 326420
A46: Escambia | B46: 88808 | C46: 0.5824659439 | D46: 57461 | E46: 0.3768700523 | F46: 4612 | G46: 0.03024877188 | H46: 415 | I46: 1055 | J46: 116 | K46: 2 | L46: 152469
A47: Brevard | B47: 181848 | C47: 0.5777501017 | D47: 119679 | E47: 0.3802326911 | F47: 9451 | G47: 0.03002681476 | H47: 744 | I47: 2708 | J47: 314 | K47: 8 | L47: 314752
A48: Madison | B48: 4851 | C48: 0.5703703704 | D48: 3526 | E48: 0.414579659 | F48: 95 | G48: 0.01116990006 | H48: 8 | I48: 22 | J48: 3 | K48: 0 | L48: 8505
A49: Manatee | B49: 101944 | C49: 0.5696532147 | D49: 71224 | E49: 0.3979928251 | F49: 4177 | G49: 0.02334067211 | H49: 319 | I49: 1149 | J49: 141 | K49: 4 | L49: 178958
A50: Hendry | B50: 6195 | C50: 0.5573549258 | D50: 4615 | E50: 0.4152046784 | F50: 207 | G50: 0.01862348178 | H50: 28 | I50: 52 | J50: 18 | K50: 0 | L50: 11115
A51: Polk | B51: 157430 | C51: 0.5537187757 | D51: 117433 | E51: 0.4130398081 | F51: 6810 | G51: 0.02395239067 | H51: 671 | I51: 1647 | J51: 320 | K51: 3 | L51: 284314
A52: Volusia | B52: 143007 | C52: 0.5481946878 | D52: 109091 | E52: 0.4181830727 | F52: 6111 | G52: 0.02342555076 | H52: 440 | I52: 2003 | J52: 208 | K52: 9 | L52: 260869
A53: Sarasota | B53: 124438 | C53: 0.5432479274 | D53: 97870 | E53: 0.4272623689 | F53: 4715 | G53: 0.02058385684 | H53: 314 | I53: 1596 | J53: 125 | K53: 5 | L53: 229063
A54: Monroe | B54: 21904 | C54: 0.5156551627 | D54: 18971 | E54: 0.4466076557 | F54: 1131 | G54: 0.02662554734 | H54: 41 | I54: 398 | J54: 33 | K54: 0 | L54: 42478
A55: Jefferson | B55: 3930 | C55: 0.5140614781 | D55: 3541 | E55: 0.4631785481 | F55: 110 | G55: 0.01438848921 | H55: 17 | I55: 42 | J55: 5 | K55: 0 | L55: 7645
A56: St. Lucie | B56: 70289 | C56: 0.4990450631 | D56: 66881 | E56: 0.4748485946 | F56: 2475 | G56: 0.01757225926 | H56: 201 | I56: 867 | J56: 134 | K56: 0 | L56: 140847
A57: Duval | B57: 211672 | C57: 0.4891944672 | D57: 205704 | E57: 0.4754018419 | F57: 11318 | G57: 0.0261569928 | H57: 747 | I57: 2912 | J57: 331 | K57: 11 | L57: 432695
A58: Seminole | B58: 109443 | C58: 0.4866382684 | D58: 105914 | E58: 0.4709465709 | F58: 6811 | G58: 0.03028510956 | H58: 516 | I58: 1974 | J58: 229 | K58: 9 | L58: 224896
A59: Pinellas | B59: 239201 | C59: 0.4857829867 | D59: 233701 | E59: 0.4746132741 | F59: 13627 | G59: 0.02767448614 | H59: 840 | I59: 4611 | J59: 413 | K59: 10 | L59: 492403
A60: Hillsborough | B60: 266870 | C60: 0.44652478 | D60: 307896 | E60: 0.5151691597 | F60: 15703 | G60: 0.0262741358 | H60: 1323 | I60: 5032 | J60: 822 | K60: 14 | L60: 597660
A61: Palm Beach | B61: 272402 | C61: 0.4112771239 | D61: 374673 | E61: 0.5656876008 | F61: 10370 | G61: 0.01565680052 | H61: 719 | I61: 3723 | J61: 435 | K61: 10 | L61: 662332
A62: Alachua | B62: 46834 | C62: 0.3642656587 | D62: 75820 | E62: 0.5897130768 | F62: 4059 | G62: 0.03157010523 | H62: 262 | I62: 1507 | J62: 87 | K62: 2 | L62: 128571
A63: Osceola | B63: 50301 | C63: 0.3587649601 | D63: 85458 | E63: 0.6095174244 | F63: 2811 | G63: 0.02004907065 | H63: 358 | I63: 1003 | J63: 275 | K63: 0 | L63: 140206
A64: Orange | B64: 195216 | C64: 0.3573584733 | D64: 329894 | E64: 0.6038973045 | F64: 14483 | G64: 0.02651228777 | H64: 1188 | I64: 4777 | J64: 705 | K64: 12 | L64: 546275
A65: Leon | B65: 53821 | C65: 0.3537782978 | D65: 92068 | E65: 0.6051849709 | F65: 4403 | G65: 0.02894197145 | H65: 330 | I65: 1366 | J65: 127 | K65: 17 | L65: 152132
A66: Miami-Dade | B66: 333999 | C66: =B66/L66 -> 0.3407443757 | D66: 624146 | E66: =D66/L66 -> 0.6367511253 | F66: 13219 | G66: =F66/L66 -> 0.01348596823 | H66: 1273 | I66: 5985 | J66: 1582 | K66: 0 | L66: =SUM(B66+D66+F66+H66+I66+J66+K66) -> 980204
A67: Broward | B67: 260951 | C67: 0.3136615017 | D67: 553320 | E67: 0.6650872467 | F67: 11078 | G67: 0.01331568806 | H67: 907 | I67: 5094 | J67: 600 | K67: 1 | L67: 831951
A68: Gadsden | B68: 6728 | C68: 0.3042554154 | D68: 15020 | E68: 0.679238457 | F68: 229 | G68: 0.01035589924 | H68: 49 | I68: 78 | J68: 9 | K68: 0 | L68: 22113
B69: =SUM(B2:B68) -> 4617886 | C69: 0.4902194142 | D69: =SUM(D2:D68) -> 4504975 | E69: 0.4782331581 | F69: =SUM(F2:F68) -> 207043 | G69: =F69/L69 -> 0.02197899605 | H69: 16475 | I69: 64399 | J69: 9108 | K69: 153 | L69: =SUM(B69+D69+F69+H69+I69+J69+K69) -> 9420039

Sheet Comparison 2016 and 2012
A1: CountyName | B1: Trump | D1: Romney | F1: Clinton | H1: Obama | J1: Johnson | L1: 2016 | M1: 2012
A2: Alachua | B2: 46834 | C2: =B2/L2 -> 0.3642656587 | D2: 48797 | E2: 0.4052301151 | F2: 75820 | G2: =F2/L2 -> 0.5897130768 | H2: 69699 | I2: 0.578808816 | J2: 4059 | K2: =J2/L2 -> 0.03157010523 | L2: 128571 | M2: 120418
A3: Baker | B3: 10294 | C3: =B3/L3 -> 0.8147854994 | D3: 8975 | E3: 0.7894968332 | F3: 2112 | G3: =F3/L3 -> 0.1671679595 | H3: 2311 | I3: 0.2032899367 | J3: 169 | K3: =J3/L3 -> 0.01337660282 | L3: 12634 | M3: 11368
A4: Bay | B4: 62194 | C4: =B4/L4 -> 0.7111705716 | D4: 56876 | E4: 0.7121874257 | F4: 21797 | G4: =F4/L4 -> 0.2492424502 | H4: 22051 | I4: 0.2761172537 | J4: 2652 | K4: =J4/L4 -> 0.03032486021 | L4: 87453 | M4: 79861
A5: Bradford | B5: 8913 | C5: =B5/L5 -> 0.7367333444 | D5: 8219 | E5: 0.7064030941 | F5: 2924 | G5: =F5/L5 -> 0.2416928418 | H5: 3325 | I5: 0.2857756768 | J5: 177 | K5: =J5/L5 -> 0.01463051744 | L5: 12098 | M5: 11635
A6: Brevard | B6: 181848 | C6: =B6/L6 -> 0.5777501017 | D6: 159300 | E6: 0.5578531932 | F6: 119679 | G6: =F6/L6 -> 0.3802326911 | H6: 122993 | I6: 0.4307095907 | J6: 9451 | K6: =J6/L6 -> 0.03002681476 | L6: 314752 | M6: 285559
A7: Broward | B7: 260951 | C7: =B7/L7 -> 0.3136615017 | D7: 244101 | E7: 0.3227047865 | F7: 553320 | G7: =F7/L7 -> 0.6650872467 | H7: 508312 | I7: 0.6719952619 | J7: 11078 | K7: =J7/L7 -> 0.01331568806 | L7: 831951 | M7: 756422
A8: Calhoun | B8: 4655 | C8: =B8/L8 -> 0.7654990955 | D8: 4366 | E8: 0.7096879064 | F8: 1241 | G8: =F8/L8 -> 0.2040782766 | H8: 1664 | I8: 0.2704811443 | J8: 124 | K8: =J8/L8 -> 0.020391383 | L8: 6081 | M8: 6152
A9: Charlotte | B9: 60218 | C9: =B9/L9 -> 0.6248365742 | D9: 47996 | E9: 0.5667792447 | F9: 33445 | G9: =F9/L9 -> 0.3470334323 | H9: 35906 | I9: 0.424009825 | J9: 1946 | K9: =J9/L9 -> 0.02019216801 | L9: 96374 | M9: 84682
A10: Citrus | B10: 54456 | C10: =B10/L10 -> 0.6832622334 | D10: 44662 | E10: 0.6040711436 | F10: 22789 | G10: =F10/L10 -> 0.2859347553 | H10: 28460 | I10: 0.3849327112 | J10: 1724 | K10: =J10/L10 -> 0.02163111669 | L10: 79700 | M10: 73935
A11: Clay | B11: 74963 | C11: =B11/L11 -> 0.7039903083 | D11: 70022 | E11: 0.7249479754 | F11: 27822 | G11: =F11/L11 -> 0.2612811435 | H11: 25759 | I11: 0.2666866827 | J11: 2806 | K11: =J11/L11 -> 0.0263516242 | L11: 106483 | M11: 96589
A12: Collier | B12: 105423 | C12: =B12/L12 -> 0.6172704331 | D12: 96520 | E12: 0.6472986748 | F12: 61085 | G12: =F12/L12 -> 0.3576635498 | H12: 51698 | I12: 0.3467058319 | J12: 3263 | K12: =J12/L12 -> 0.0191054459 | L12: 170789 | M12: 149112
A13: Columbia | B13: 20368 | C13: =B13/L13 -> 0.7095133591 | D13: 18429 | E13: 0.6784596694 | F13: 7601 | G13: =F13/L13 -> 0.2647786254 | H13: 8462 | I13: 0.3115267091 | J13: 523 | K13: =J13/L13 -> 0.01821855297 | L13: 28707 | M13: 27163
A14: Desoto | B14: 6778 | C14: =B14/L14 -> 0.6265483454 | D14: 5587 | E14: 0.5663456665 | F14: 3781 | G14: =F14/L14 -> 0.3495100758 | H14: 4174 | I14: 0.4231120122 | J14: 166 | K14: =J14/L14 -> 0.01534479571 | L14: 10818 | M14: 9865
A15: Dixie | B15: 5822 | C15: =B15/L15 -> 0.8083865593 | D15: 5052 | E15: 0.7278490131 | F15: 1270 | G15: =F15/L15 -> 0.1763399056 | H15: 1798 | I15: 0.2590404841 | J15: 77 | K15: =J15/L15 -> 0.01069147459 | L15: 7202 | M15: 6941
A16: Duval | B16: 211672 | C16: =B16/L16 -> 0.4891944672 | D16: 211615 | E16: 0.5138182048 | F16: 205704 | G16: =F16/L16 -> 0.4754018419 | H16: 196737 | I16: 0.4776932266 | J16: 11318 | K16: =J16/L16 -> 0.0261569928 | L16: 432695 | M16: 411848
A17: Escambia | B17: 88808 | C17: =B17/L17 -> 0.5824659439 | D17: 88711 | E17: 0.597372426 | F17: 57461 | G17: =F17/L17 -> 0.3768700523 | H17: 58185 | I17: 0.3918129049 | J17: 4612 | K17: =J17/L17 -> 0.03024877188 | L17: 152469 | M17: 148502
A18: Flagler | B18: 33850 | C18: =B18/L18 -> 0.5886649392 | D18: 26969 | E18: 0.5330368613 | F18: 22026 | G18: =F18/L18 -> 0.3830408848 | H18: 23207 | I18: 0.4586816879 | J18: 1114 | K18: =J18/L18 -> 0.01937290228 | L18: 57503 | M18: 50595
A19: Franklin | B19: 4125 | C19: =B19/L19 -> 0.6857855362 | D19: 3570 | E19: 0.652173913 | F19: 1744 | G19: =F19/L19 -> 0.2899418121 | H19: 1845 | I19: 0.3370478626 | J19: 95 | K19: =J19/L19 -> 0.01579384871 | L19: 6015 | M19: 5474
A20: Gadsden | B20: 6728 | C20: =B20/L20 -> 0.3042554154 | D20: 6630 | E20: 0.2946797635 | F20: 15020 | G20: =F20/L20 -> 0.679238457 | H20: 15770 | I20: 0.7009200409 | J20: 229 | K20: =J20/L20 -> 0.01035589924 | L20: 22113 | M20: 22499
A21: Gilchrist | B21: 6740 | C21: =B21/L21 -> 0.8004750594 | D21: 5917 | E21: 0.748135036 | F21: 1458 | G21: =F21/L21 -> 0.1731591449 | H21: 1885 | I21: 0.2383360728 | J21: 155 | K21: =J21/L21 -> 0.01840855107 | L21: 8420 | M21: 7909
A22: Glades | B22: 2996 | C22: =B22/L22 -> 0.6882609694 | D22: 2344 | E22: 0.5876159438 | F22: 1271 | G22: =F22/L22 -> 0.2919825408 | H22: 1603 | I22: 0.4018551015 | J22: 54 | K22: =J22/L22 -> 0.01240523777 | L22: 4353 | M22: 3989
A23: Gulf | B23: 5329 | C23: =B23/L23 -> 0.7307006719 | D23: 4995 | E23: 0.7027293191 | F23: 1720 | G23: =F23/L23 -> 0.2358425888 | H23: 2014 | I23: 0.2833427124 | J23: 195 | K23: =J23/L23 -> 0.02673796791 | L23: 7293 | M23: 7108
A24: Hamilton | B24: 3443 | C24: =B24/L24 -> 0.6305860806 | D24: 3138 | E24: 0.5803587942 | F24: 1904 | G24: =F24/L24 -> 0.3487179487 | H24: 2228 | I24: 0.4120584428 | J24: 79 | K24: =J24/L24 -> 0.01446886447 | L24: 5460 | M24: 5407
A25: Hardee | B25: 5242 | C25: =B25/L25 -> 0.6912831333 | D25: 4696 | E25: 0.6498754498 | F25: 2149 | G25: =F25/L25 -> 0.2833970724 | H25: 2463 | I25: 0.3408524772 | J25: 140 | K25: =J25/L25 -> 0.01846234999 | L25: 7583 | M25: 7226
A26: Hendry | B26: 6195 | C26: =B26/L26 -> 0.5573549258 | D26: 5355 | E26: 0.5257731959 | F26: 4615 | G26: =F26/L26 -> 0.4152046784 | H26: 4751 | I26: 0.4664702995 | J26: 207 | K26: =J26/L26 -> 0.01862348178 | L26: 11115 | M26: 10185
A27: Hernando | B27: 58970 | C27: =B27/L27 -> 0.6287048488 | D27: 44938 | E27: 0.5371054299 | F27: 31795 | G27: =F27/L27 -> 0.3389803403 | H27: 37830 | I27: 0.452149593 | J27: 2051 | K27: =J27/L27 -> 0.02186660412 | L27: 93796 | M27: 83667
A28: Highlands | B28: 29565 | C28: =B28/L28 -> 0.6471347897 | D28: 25915 | E28: 0.6105692206 | F28: 14937 | G28: =F28/L28 -> 0.3269491748 | H28: 16148 | I28: 0.3804542456 | J28: 854 | K28: =J28/L28 -> 0.01869281618 | L28: 45686 | M28: 42444
A29: Hillsborough | B29: 266870 | C29: =B29/L29 -> 0.44652478 | D29: 250186 | E29: 0.4615109334 | F29: 307896 | G29: =F29/L29 -> 0.5151691597 | H29: 286467 | I29: 0.5284374527 | J29: 15703 | K29: =J29/L29 -> 0.0262741358 | L29: 597660 | M29: 542102
A30: Holmes | B30: 7483 | C30: =B30/L30 -> 0.8789053324 | D30: 6919 | E30: 0.836233986 | F30: 853 | G30: =F30/L30 -> 0.1001879258 | H30: 1264 | I30: 0.1527677061 | J30: 133 | K30: =J30/L30 -> 0.01562132957 | L30: 8514 | M30: 8274
A31: Indian River | B31: 48620 | C31: =B31/L31 -> 0.6076816358 | D31: 43450 | E31: 0.6079984328 | F31: 29043 | G31: =F31/L31 -> 0.3629966629 | H31: 27492 | I31: 0.3846971902 | J31: 1723 | K31: =J31/L31 -> 0.0215350773 | L31: 80009 | M31: 71464
A32: Jackson | B32: 14257 | C32: =B32/L32 -> 0.677581864 | D32: 13418 | E32: 0.6407525906 | F32: 6397 | G32: =F32/L32 -> 0.3040254741 | H32: 7342 | I32: 0.3506040781 | J32: 266 | K32: =J32/L32 -> 0.0126419847 | L32: 21041 | M32: 20941
A33: Jefferson | B33: 3930 | C33: =B33/L33 -> 0.5140614781 | D33: 3808 | E33: 0.487704918 | F33: 3541 | G33: =F33/L33 -> 0.4631785481 | H33: 3945 | I33: 0.5052510246 | J33: 110 | K33: =J33/L33 -> 0.01438848921 | L33: 7645 | M33: 7808
A34: Lafayette | B34: 2809 | C34: =B34/L34 -> 0.828125 | D34: 2668 | E34: 0.7849367461 | F34: 518 | G34: =F34/L34 -> 0.1527122642 | H34: 687 | I34: 0.2021182701 | J34: 47 | K34: =J34/L34 -> 0.01385613208 | L34: 3392 | M34: 3399
A35: Lake | B35: 102188 | C35: =B35/L35 -> 0.5994767162 | D35: 87643 | E35: 0.5811446115 | F35: 62838 | G35: =F35/L35 -> 0.3686334784 | H35: 61799 | I35: 0.4097778014 | J35: 3985 | K35: =J35/L35 -> 0.02337764428 | L35: 170462 | M35: 150811
A36: Lee | B36: 191551 | C36: =B36/L36 -> 0.586823724 | D36: 154163 | E36: 0.5791986956 | F36: 124908 | G36: =F36/L36 -> 0.3826603762 | H36: 110157 | I36: 0.413865783 | J36: 6982 | K36: =J36/L36 -> 0.02138962073 | L36: 326420 | M36: 266166
A37: Leon | B37: 53821 | C37: =B37/L37 -> 0.3537782978 | D37: 55805 | E37: 0.3761636098 | F37: 92068 | G37: =F37/L37 -> 0.6051849709 | H37: 90881 | I37: 0.6125996778 | J37: 4403 | K37: =J37/L37 -> 0.02894197145 | L37: 152132 | M37: 148353
A38: Levy | B38: 13775 | C38: =B38/L38 -> 0.7102345965 | D38: 12054 | E38: 0.6551443013 | F38: 5101 | G38: =F38/L38 -> 0.2630059294 | H38: 6119 | I38: 0.3325724224 | J38: 358 | K38: =J38/L38 -> 0.01845836556 | L38: 19395 | M38: 18399
A39: Liberty | B39: 2543 | C39: =B39/L39 -> 0.7715412621 | D39: 2301 | E39: 0.7006699147 | F39: 651 | G39: =F39/L39 -> 0.1975121359 | H39: 942 | I39: 0.2868453106 | J39: 76 | K39: =J39/L39 -> 0.02305825243 | L39: 3296 | M39: 3284
A40: Madison | B40: 4851 | C40: =B40/L40 -> 0.5703703704 | D40: 4474 | E40: 0.5133677567 | F40: 3526 | G40: =F40/L40 -> 0.414579659 | H40: 4176 | I40: 0.4791738382 | J40: 95 | K40: =J40/L40 -> 0.01116990006 | L40: 8505 | M40: 8715
A41: Manatee | B41: 101944 | C41: =B41/L41 -> 0.5696532147 | D41: 85627 | E41: 0.5578633275 | F41: 71224 | G41: =F41/L41 -> 0.3979928251 | H41: 66503 | I41: 0.4332697031 | J41: 4177 | K41: =J41/L41 -> 0.02334067211 | L41: 178958 | M41: 153491
A42: Marion | B42: 107833 | C42: =B42/L42 -> 0.6172467086 | D42: 93043 | E42: 0.576528178 | F42: 62041 | G42: =F42/L42 -> 0.3551287922 | H42: 66831 | I42: 0.4141091179 | J42: 3365 | K42: =J42/L42 -> 0.0192615913 | L42: 174700 | M42: 161385
A43: Martin | B43: 53204 | C43: =B43/L43 -> 0.620151063 | D43: 48183 | E43: 0.6108934616 | F43: 30185 | G43: =F43/L43 -> 0.3518393323 | H43: 30107 | I43: 0.3817149088 | J43: 1804 | K43: =J43/L43 -> 0.02102760164 | L43: 85792 | M43: 78873
A44: Miami-Dade | B44: 333999 | C44: =B44/L44 -> 0.3407443757 | D44: 332981 | E44: 0.3791138477 | F44: 624146 | G44: =F44/L44 -> 0.6367511253 | H44: 541440 | I44: 0.6164537967 | J44: 13219 | K44: =J44/L44 -> 0.01348596823 | L44: 980204 | M44: 878314
A45: Monroe | B45: 21904 | C45: =B45/L45 -> 0.5156551627 | D45: 19234 | E45: 0.4924597383 | F45: 18971 | G45: =F45/L45 -> 0.4466076557 | H45: 19404 | I45: 0.4968123512 | J45: 1131 | K45: =J45/L45 -> 0.02662554734 | L45: 42478 | M45: 39057
A46: Nassau | B46: 34266 | C46: =B46/L46 -> 0.7352114489 | D46: 29929 | E46: 0.7384771023 | F46: 10869 | G46: =F46/L46 -> 0.2332053125 | H46: 10251 | I46: 0.2529362416 | J46: 1195 | K46: =J46/L46 -> 0.02563992533 | L46: 46607 | M46: 40528
A47: Okaloosa | B47: 71893 | C47: =B47/L47 -> 0.7128352585 | D47: 70168 | E47: 0.7401843921 | F47: 23780 | G47: =F47/L47 -> 0.2357840464 | H47: 23421 | I47: 0.2470621743 | J47: 4171 | K47: =J47/L47 -> 0.04135640276 | L47: 100855 | M47: 94798
A48: Okeechobee | B48: 9356 | C48: =B48/L48 -> 0.6852706365 | D48: 7328 | E48: 0.5946121389 | F48: 3959 | G48: =F48/L48 -> 0.2899728997 | H48: 4856 | I48: 0.394027913 | J48: 234 | K48: =J48/L48 -> 0.01713909031 | L48: 13653 | M48: 12324
A49: Orange | B49: 195216 | C49: =B49/L49 -> 0.3573584733 | D49: 188589 | E49: 0.4043858916 | F49: 329894 | G49: =F49/L49 -> 0.6038973045 | H49: 273665 | I49: 0.5868118767 | J49: 14483 | K49: =J49/L49 -> 0.02651228777 | L49: 546275 | M49: 466359
A50: Osceola | B50: 50301 | C50: =B50/L50 -> 0.3587649601 | D50: 40592 | E50: 0.3734383337 | F50: 85458 | G50: =F50/L50 -> 0.6095174244 | H50: 67239 | I50: 0.6185854386 | J50: 2811 | K50: =J50/L50 -> 0.02004907065 | L50: 140206 | M50: 108698
A51: Palm Beach | B51: 272402 | C51: =B51/L51 -> 0.4112771239 | D51: 247398 | E51: 0.4118351115 | F51: 374673 | G51: =F51/L51 -> 0.5656876008 | H51: 349651 | I51: 0.5820522339 | J51: 10370 | K51: =J51/L51 -> 0.01565680052 | L51: 662332 | M51: 600721
A52: Pasco | B52: 142101 | C52: =B52/L52 -> 0.589290824 | D52: 112427 | E52: 0.5264101736 | F52: 90142 | G52: =F52/L52 -> 0.3738175907 | H52: 98263 | I52: 0.4600909291 | J52: 6129 | K52: =J52/L52 -> 0.02541687574 | L52: 241139 | M52: 213573
A53: Pinellas | B53: 239201 | C53: =B53/L53 -> 0.4857829867 | D53: 213258 | E53: 0.4659319819 | F53: 233701 | G53: =F53/L53 -> 0.4746132741 | H53: 239104 | I53: 0.5224010382 | J53: 13627 | K53: =J53/L53 -> 0.02767448614 | L53: 492403 | M53: 457702
A54: Polk | B54: 157430 | C54: =B54/L54 -> 0.5537187757 | D54: 131577 | E54: 0.5290952739 | F54: 117433 | G54: =F54/L54 -> 0.4130398081 | H54: 114622 | I54: 0.460916106 | J54: 6810 | K54: =J54/L54 -> 0.02395239067 | L54: 284314 | M54: 248683
A55: Putnam | B55: 22138 | C55: =B55/L55 -> 0.668478425 | D55: 19326 | E55: 0.6169710126 | F55: 10094 | G55: =F55/L55 -> 0.3047981399 | H55: 11667 | I55: 0.37246201 | J55: 597 | K55: =J55/L55 -> 0.0180269952 | L55: 33117 | M55: 31324
A56: Santa Rosa | B56: 65339 | C56: =B56/L56 -> 0.7446464186 | D56: 58186 | E56: 0.757176691 | F56: 18464 | G56: =F56/L56 -> 0.2104279446 | H56: 17768 | I56: 0.2312156781 | J56: 3123 | K56: =J56/L56 -> 0.03559177161 | L56: 87745 | M56: 76846
A57: Sarasota | B57: 124438 | C57: =B57/L57 -> 0.5432479274 | D57: 110504 | E57: 0.5326007326 | F57: 97870 | G57: =F57/L57 -> 0.4272623689 | H57: 95119 | I57: 0.4584490071 | J57: 4715 | K57: =J57/L57 -> 0.02058385684 | L57: 229063 | M57: 207480
A58: Seminole | B58: 109443 | C58: =B58/L58 -> 0.4866382684 | D58: 109943 | E58: 0.5270012463 | F58: 105914 | G58: =F58/L58 -> 0.4709465709 | H58: 96445 | I58: 0.4622998754 | J58: 6811 | K58: =J58/L58 -> 0.03028510956 | L58: 224896 | M58: 208620
A59: St. Johns | B59: 88684 | C59: =B59/L59 -> 0.6496330047 | D59: 78513 | E59: 0.6839409382 | F59: 43099 | G59: =F59/L59 -> 0.3157112091 | H59: 35190 | I59: 0.3065464524 | J59: 3612 | K59: =J59/L59 -> 0.02645882474 | L59: 136514 | M59: 114795
A60: St. Lucie | B60: 70289 | C60: =B60/L60 -> 0.4990450631 | D60: 56202 | E60: 0.4568265503 | F60: 66881 | G60: =F60/L60 -> 0.4748485946 | H60: 65869 | I60: 0.5354027978 | J60: 2475 | K60: =J60/L60 -> 0.01757225926 | L60: 140847 | M60: 123027
A61: Sumter | B61: 52730 | C61: =B61/L61 -> 0.6877975608 | D61: 40646 | E61: 0.6720679905 | F61: 22638 | G61: =F61/L61 -> 0.2952846801 | H61: 19524 | I61: 0.322822798 | J61: 971 | K61: =J61/L61 -> 0.01266549273 | L61: 76665 | M61: 60479
A62: Suwannee | B62: 14287 | C62: =B62/L62 -> 0.764255911 | D62: 12672 | E62: 0.718815588 | F62: 3964 | G62: =F62/L62 -> 0.212046646 | H62: 4751 | I62: 0.2694991208 | J62: 309 | K62: =J62/L62 -> 0.01652936771 | L62: 18694 | M62: 17629
A63: Taylor | B63: 6930 | C63: =B63/L63 -> 0.7459634015 | D63: 6249 | E63: 0.6851973684 | F63: 2152 | G63: =F63/L63 -> 0.2316469322 | H63: 2764 | I63: 0.3030701754 | J63: 151 | K63: =J63/L63 -> 0.0162540366 | L63: 9290 | M63: 9120
A64: Union | B64: 4568 | C64: =B64/L64 -> 0.8022479803 | D64: 3980 | E64: 0.7379936955 | F64: 1014 | G64: =F64/L64 -> 0.1780821918 | H64: 1339 | I64: 0.2482848136 | J64: 90 | K64: =J64/L64 -> 0.0158061117 | L64: 5694 | M64: 5393
A65: Volusia | B65: 143007 | C65: =B65/L65 -> 0.5481946878 | D65: 117490 | E65: 0.5009465498 | F65: 109091 | G65: =F65/L65 -> 0.4181830727 | H65: 114748 | I65: 0.4892553808 | J65: 6111 | K65: =J65/L65 -> 0.02342555076 | L65: 260869 | M65: 234536
A66: Wakulla | B66: 10512 | C66: =B66/L66 -> 0.6847762361 | D66: 9290 | E66: 0.6336971351 | F66: 4348 | G66: =F66/L66 -> 0.2832388769 | H66: 5175 | I66: 0.3530013643 | J66: 378 | K66: =J66/L66 -> 0.02462380301 | L66: 15351 | M66: 14660
A67: Walton | B67: 25756 | C67: =B67/L67 -> 0.7657044326 | D67: 21490 | E67: 0.7541938654 | F67: 6876 | G67: =F67/L67 -> 0.2044177543 | H67: 6671 | I67: 0.2341194637 | J67: 783 | K67: =J67/L67 -> 0.02327793798 | L67: 33637 | M67: 28494
A68: Washington | B68: 8637 | C68: =B68/L68 -> 0.774202223 | D68: 8038 | E68: 0.7307937085 | F68: 2264 | G68: =F68/L68 -> 0.2029401219 | H68: 2820 | I68: 0.2563869443 | J68: 192 | K68: =J68/L68 -> 0.0172104697 | L68: 11156 | M68: 10999
B69: =SUM(B2:B68) -> 4617886 | C69: =B69/L69 -> 0.4902194142 | D69: =SUM(D2:D68) -> 4163447 | E69: 0.4913097776 | F69: =SUM(F2:F68) -> 4504975 | G69: =F69/L69 -> 0.4782331581 | H69: =SUM(H2:H68) -> 4237756 | I69: 0.5000786507 | J69: =SUM(J2:J68) -> 207043 | K69: =J69/L69 -> 0.02197899605 | L69: 9420039 | M69: 8474179
A72: Trump received a slightly small share of the vote statewide than had Romney in 2012, but a larger share of the vote in 48 counties. Clinton received a larger share of the vote than had Obama in six counties.
